{"text_format":"1","workbook":"xlsx","n_sheets":4,"sheets":["AA","BB","CC","Summary"],"not_rendered":{"charts":0,"images":0,"macros":1,"external_links":0,"defined_names":5,"comments":0,"pivot_tables":0},"unopened":[],"bounds":{"document_bytes":16777216,"sheet_cells":100000,"rows_first":2000,"rows_last":500,"rows_between":2000,"halvings":0,"cell_chars":16384,"cell_head_chars":4096},"cells_cut":0,"cells_raw":0,"read":"whole","date_system":"1900"}

{"sheet":"AA","index":0,"n_rows":49,"n_cols":3,"rows_kept":49,"cut":false,"hidden":false,"merged":[]}
[]
[null,"Table2"]
[null,"NName","Dest_A"]
[null,{"$f":"INDEX(Table1[NName],RANDBETWEEN(1,ROWS(Table1[])))","v":"Benjamin Rogers"},{"$f":"INDEX(USCity,RANDBETWEEN(1,COUNTA(USCity)))","v":"New Orleans"}]
[null,{"$f":"INDEX(Table1[NName],RANDBETWEEN(1,ROWS(Table1[])))","v":"David Woods"},{"$f":"INDEX(USCity,RANDBETWEEN(1,COUNTA(USCity)))","v":"Winston-Salem"}]
[null,{"$f":"INDEX(Table1[NName],RANDBETWEEN(1,ROWS(Table1[])))","v":"Randy Anderson"},{"$f":"INDEX(USCity,RANDBETWEEN(1,COUNTA(USCity)))","v":"Portland"}]
[null,{"$f":"INDEX(Table1[NName],RANDBETWEEN(1,ROWS(Table1[])))","v":"Marvin Robinson"},{"$f":"INDEX(USCity,RANDBETWEEN(1,COUNTA(USCity)))","v":"Brownsville"}]
[null,{"$f":"INDEX(Table1[NName],RANDBETWEEN(1,ROWS(Table1[])))","v":"George Russell"},{"$f":"INDEX(USCity,RANDBETWEEN(1,COUNTA(USCity)))","v":"Corpus Christi"}]
[null,{"$f":"INDEX(Table1[NName],RANDBETWEEN(1,ROWS(Table1[])))","v":"Terry Jenkins"},{"$f":"INDEX(USCity,RANDBETWEEN(1,COUNTA(USCity)))","v":"Dallas"}]
[null,{"$f":"INDEX(Table1[NName],RANDBETWEEN(1,ROWS(Table1[])))","v":"George Russell"},{"$f":"INDEX(USCity,RANDBETWEEN(1,COUNTA(USCity)))","v":"Sacramento"}]
[null,{"$f":"INDEX(Table1[NName],RANDBETWEEN(1,ROWS(Table1[])))","v":"Thomas Allen"},{"$f":"INDEX(USCity,RANDBETWEEN(1,COUNTA(USCity)))","v":"Detroit"}]
[null,{"$f":"INDEX(Table1[NName],RANDBETWEEN(1,ROWS(Table1[])))","v":"Christopher Baker"},{"$f":"INDEX(USCity,RANDBETWEEN(1,COUNTA(USCity)))","v":"Wichita"}]
[null,{"$f":"INDEX(Table1[NName],RANDBETWEEN(1,ROWS(Table1[])))","v":"Ronald Howard"},{"$f":"INDEX(USCity,RANDBETWEEN(1,COUNTA(USCity)))","v":"Nashville"}]
[null,{"$f":"INDEX(Table1[NName],RANDBETWEEN(1,ROWS(Table1[])))","v":"Randy Anderson"},{"$f":"INDEX(USCity,RANDBETWEEN(1,COUNTA(USCity)))","v":"Garland"}]
[null,{"$f":"INDEX(Table1[NName],RANDBETWEEN(1,ROWS(Table1[])))","v":"Carlos Turner"},{"$f":"INDEX(USCity,RANDBETWEEN(1,COUNTA(USCity)))","v":"Vancouver"}]
[null,{"$f":"INDEX(Table1[NName],RANDBETWEEN(1,ROWS(Table1[])))","v":"Charles Torres"},{"$f":"INDEX(USCity,RANDBETWEEN(1,COUNTA(USCity)))","v":"Little Rock"}]
[null,{"$f":"INDEX(Table1[NName],RANDBETWEEN(1,ROWS(Table1[])))","v":"Charles Torres"},{"$f":"INDEX(USCity,RANDBETWEEN(1,COUNTA(USCity)))","v":"Virginia Beach"}]
[null,{"$f":"INDEX(Table1[NName],RANDBETWEEN(1,ROWS(Table1[])))","v":"Anthony Rodriguez"},{"$f":"INDEX(USCity,RANDBETWEEN(1,COUNTA(USCity)))","v":"Gilbert"}]
[null,{"$f":"INDEX(Table1[NName],RANDBETWEEN(1,ROWS(Table1[])))","v":"Mark Smith"},{"$f":"INDEX(USCity,RANDBETWEEN(1,COUNTA(USCity)))","v":"Memphis"}]
[null,{"$f":"INDEX(Table1[NName],RANDBETWEEN(1,ROWS(Table1[])))","v":"Robert Ward"},{"$f":"INDEX(USCity,RANDBETWEEN(1,COUNTA(USCity)))","v":"Colorado Springs"}]
[null,{"$f":"INDEX(Table1[NName],RANDBETWEEN(1,ROWS(Table1[])))","v":"Thomas Reynolds"},{"$f":"INDEX(USCity,RANDBETWEEN(1,COUNTA(USCity)))","v":"Hialeah"}]
[null,{"$f":"INDEX(Table1[NName],RANDBETWEEN(1,ROWS(Table1[])))","v":"Randy Hayes"},{"$f":"INDEX(USCity,RANDBETWEEN(1,COUNTA(USCity)))","v":"Anaheim"}]
[null,{"$f":"INDEX(Table1[NName],RANDBETWEEN(1,ROWS(Table1[])))","v":"Robert Ward"},{"$f":"INDEX(USCity,RANDBETWEEN(1,COUNTA(USCity)))","v":"Reno"}]
[null,{"$f":"INDEX(Table1[NName],RANDBETWEEN(1,ROWS(Table1[])))","v":"Donald Barnes"},{"$f":"INDEX(USCity,RANDBETWEEN(1,COUNTA(USCity)))","v":"Omaha"}]
[null,{"$f":"INDEX(Table1[NName],RANDBETWEEN(1,ROWS(Table1[])))","v":"Carlos Turner"},{"$f":"INDEX(USCity,RANDBETWEEN(1,COUNTA(USCity)))","v":"San Francisco"}]
[null,{"$f":"INDEX(Table1[NName],RANDBETWEEN(1,ROWS(Table1[])))","v":"Nathan Rogers"},{"$f":"INDEX(USCity,RANDBETWEEN(1,COUNTA(USCity)))","v":"Akron"}]
[null,{"$f":"INDEX(Table1[NName],RANDBETWEEN(1,ROWS(Table1[])))","v":"Ronald Howard"},{"$f":"INDEX(USCity,RANDBETWEEN(1,COUNTA(USCity)))","v":"Little Rock"}]
[null,{"$f":"INDEX(Table1[NName],RANDBETWEEN(1,ROWS(Table1[])))","v":"Michael Boyd"},{"$f":"INDEX(USCity,RANDBETWEEN(1,COUNTA(USCity)))","v":"Amarillo"}]
[null,{"$f":"INDEX(Table1[NName],RANDBETWEEN(1,ROWS(Table1[])))","v":"Thomas Allen"},{"$f":"INDEX(USCity,RANDBETWEEN(1,COUNTA(USCity)))","v":"Indianapolis"}]
[null,{"$f":"INDEX(Table1[NName],RANDBETWEEN(1,ROWS(Table1[])))","v":"Earl Kelly"},{"$f":"INDEX(USCity,RANDBETWEEN(1,COUNTA(USCity)))","v":"Boise"}]
[null,{"$f":"INDEX(Table1[NName],RANDBETWEEN(1,ROWS(Table1[])))","v":"Jeremy Powell"},{"$f":"INDEX(USCity,RANDBETWEEN(1,COUNTA(USCity)))","v":"Huntsville"}]
[null,{"$f":"INDEX(Table1[NName],RANDBETWEEN(1,ROWS(Table1[])))","v":"Earl Jackson"},{"$f":"INDEX(USCity,RANDBETWEEN(1,COUNTA(USCity)))","v":"Tacoma"}]
[null,{"$f":"INDEX(Table1[NName],RANDBETWEEN(1,ROWS(Table1[])))","v":"Philip Griffin"},{"$f":"INDEX(USCity,RANDBETWEEN(1,COUNTA(USCity)))","v":"San Francisco"}]
[null,{"$f":"INDEX(Table1[NName],RANDBETWEEN(1,ROWS(Table1[])))","v":"Paul Murray"},{"$f":"INDEX(USCity,RANDBETWEEN(1,COUNTA(USCity)))","v":"Des Moines"}]
[null,{"$f":"INDEX(Table1[NName],RANDBETWEEN(1,ROWS(Table1[])))","v":"Shawn Fisher"},{"$f":"INDEX(USCity,RANDBETWEEN(1,COUNTA(USCity)))","v":"San Jose"}]
[null,{"$f":"INDEX(Table1[NName],RANDBETWEEN(1,ROWS(Table1[])))","v":"Marvin Robinson"},{"$f":"INDEX(USCity,RANDBETWEEN(1,COUNTA(USCity)))","v":"Corpus Christi"}]
[null,{"$f":"INDEX(Table1[NName],RANDBETWEEN(1,ROWS(Table1[])))","v":"Kevin Jordan"},{"$f":"INDEX(USCity,RANDBETWEEN(1,COUNTA(USCity)))","v":"Salt Lake"}]
[null,{"$f":"INDEX(Table1[NName],RANDBETWEEN(1,ROWS(Table1[])))","v":"David James"},{"$f":"INDEX(USCity,RANDBETWEEN(1,COUNTA(USCity)))","v":"Laredo"}]
[null,{"$f":"INDEX(Table1[NName],RANDBETWEEN(1,ROWS(Table1[])))","v":"Marvin Gonzales"},{"$f":"INDEX(USCity,RANDBETWEEN(1,COUNTA(USCity)))","v":"Minneapolis"}]
[null,{"$f":"INDEX(Table1[NName],RANDBETWEEN(1,ROWS(Table1[])))","v":"Ronald Howard"},{"$f":"INDEX(USCity,RANDBETWEEN(1,COUNTA(USCity)))","v":"Glendale"}]
[null,{"$f":"INDEX(Table1[NName],RANDBETWEEN(1,ROWS(Table1[])))","v":"Albert Bennett"},{"$f":"INDEX(USCity,RANDBETWEEN(1,COUNTA(USCity)))","v":"Mesa"}]
[null,{"$f":"INDEX(Table1[NName],RANDBETWEEN(1,ROWS(Table1[])))","v":"Marvin Smith"},{"$f":"INDEX(USCity,RANDBETWEEN(1,COUNTA(USCity)))","v":"Scottsdale"}]
[null,{"$f":"INDEX(Table1[NName],RANDBETWEEN(1,ROWS(Table1[])))","v":"Philip Griffin"},{"$f":"INDEX(USCity,RANDBETWEEN(1,COUNTA(USCity)))","v":"Augusta"}]
[null,{"$f":"INDEX(Table1[NName],RANDBETWEEN(1,ROWS(Table1[])))","v":"Justin Gomez"},{"$f":"INDEX(USCity,RANDBETWEEN(1,COUNTA(USCity)))","v":"Fort Wayne"}]
[null,{"$f":"INDEX(Table1[NName],RANDBETWEEN(1,ROWS(Table1[])))","v":"Vincent Parker"},{"$f":"INDEX(USCity,RANDBETWEEN(1,COUNTA(USCity)))","v":"Kansas City"}]
[null,{"$f":"INDEX(Table1[NName],RANDBETWEEN(1,ROWS(Table1[])))","v":"Vincent Simpson"},{"$f":"INDEX(USCity,RANDBETWEEN(1,COUNTA(USCity)))","v":"Jersey City"}]
[null,{"$f":"INDEX(Table1[NName],RANDBETWEEN(1,ROWS(Table1[])))","v":"Vincent Parker"},{"$f":"INDEX(USCity,RANDBETWEEN(1,COUNTA(USCity)))","v":"Washington"}]
[null,{"$f":"INDEX(Table1[NName],RANDBETWEEN(1,ROWS(Table1[])))","v":"Charles Richardson"},{"$f":"INDEX(USCity,RANDBETWEEN(1,COUNTA(USCity)))","v":"Glendale"}]
[null,{"$f":"INDEX(Table1[NName],RANDBETWEEN(1,ROWS(Table1[])))","v":"Paul Murray"},{"$f":"INDEX(USCity,RANDBETWEEN(1,COUNTA(USCity)))","v":"St. Paul"}]

{"sheet":"BB","index":1,"n_rows":50,"n_cols":3,"rows_kept":50,"cut":false,"hidden":false,"merged":[]}
[]
[]
[null,"Table3"]
[null,"NName","Dest_A"]
[null,{"$f":"INDEX(Table1[NName],RANDBETWEEN(1,ROWS(Table1[])))","v":"Terry Jenkins"},{"$f":"INDEX(USCity,RANDBETWEEN(1,COUNTA(USCity)))","v":"Spokane"}]
[null,{"$f":"INDEX(Table1[NName],RANDBETWEEN(1,ROWS(Table1[])))","v":"Carlos Turner"},{"$f":"INDEX(USCity,RANDBETWEEN(1,COUNTA(USCity)))","v":"Chesapeake"}]
[null,{"$f":"INDEX(Table1[NName],RANDBETWEEN(1,ROWS(Table1[])))","v":"Shawn Fisher"},{"$f":"INDEX(USCity,RANDBETWEEN(1,COUNTA(USCity)))","v":"Albuquerque"}]
[null,{"$f":"INDEX(Table1[NName],RANDBETWEEN(1,ROWS(Table1[])))","v":"Marvin Robinson"},{"$f":"INDEX(USCity,RANDBETWEEN(1,COUNTA(USCity)))","v":"Yonkers"}]
[null,{"$f":"INDEX(Table1[NName],RANDBETWEEN(1,ROWS(Table1[])))","v":"Aaron Hunter"},{"$f":"INDEX(USCity,RANDBETWEEN(1,COUNTA(USCity)))","v":"Arlington"}]
[null,{"$f":"INDEX(Table1[NName],RANDBETWEEN(1,ROWS(Table1[])))","v":"David James"},{"$f":"INDEX(USCity,RANDBETWEEN(1,COUNTA(USCity)))","v":"North"}]
[null,{"$f":"INDEX(Table1[NName],RANDBETWEEN(1,ROWS(Table1[])))","v":"Robert Ward"},{"$f":"INDEX(USCity,RANDBETWEEN(1,COUNTA(USCity)))","v":"Richmond"}]
[null,{"$f":"INDEX(Table1[NName],RANDBETWEEN(1,ROWS(Table1[])))","v":"Albert Gonzales"},{"$f":"INDEX(USCity,RANDBETWEEN(1,COUNTA(USCity)))","v":"Buffalo"}]
[null,{"$f":"INDEX(Table1[NName],RANDBETWEEN(1,ROWS(Table1[])))","v":"Albert Gonzales"},{"$f":"INDEX(USCity,RANDBETWEEN(1,COUNTA(USCity)))","v":"Tacoma"}]
[null,{"$f":"INDEX(Table1[NName],RANDBETWEEN(1,ROWS(Table1[])))","v":"Jeremy Powell"},{"$f":"INDEX(USCity,RANDBETWEEN(1,COUNTA(USCity)))","v":"Rochester"}]
[null,{"$f":"INDEX(Table1[NName],RANDBETWEEN(1,ROWS(Table1[])))","v":"David Woods"},{"$f":"INDEX(USCity,RANDBETWEEN(1,COUNTA(USCity)))","v":"Augusta"}]
[null,{"$f":"INDEX(Table1[NName],RANDBETWEEN(1,ROWS(Table1[])))","v":"Jeremy Powell"},{"$f":"INDEX(USCity,RANDBETWEEN(1,COUNTA(USCity)))","v":"Akron"}]
[null,{"$f":"INDEX(Table1[NName],RANDBETWEEN(1,ROWS(Table1[])))","v":"Daniel Gonzales"},{"$f":"INDEX(USCity,RANDBETWEEN(1,COUNTA(USCity)))","v":"Milwaukee"}]
[null,{"$f":"INDEX(Table1[NName],RANDBETWEEN(1,ROWS(Table1[])))","v":"George Russell"},{"$f":"INDEX(USCity,RANDBETWEEN(1,COUNTA(USCity)))","v":"Denver"}]
[null,{"$f":"INDEX(Table1[NName],RANDBETWEEN(1,ROWS(Table1[])))","v":"Randy Anderson"},{"$f":"INDEX(USCity,RANDBETWEEN(1,COUNTA(USCity)))","v":"San Francisco"}]
[null,{"$f":"INDEX(Table1[NName],RANDBETWEEN(1,ROWS(Table1[])))","v":"Justin Young"},{"$f":"INDEX(USCity,RANDBETWEEN(1,COUNTA(USCity)))","v":"Santa Clarita"}]
[null,{"$f":"INDEX(Table1[NName],RANDBETWEEN(1,ROWS(Table1[])))","v":"Lawrence Ford"},{"$f":"INDEX(USCity,RANDBETWEEN(1,COUNTA(USCity)))","v":"Durham"}]
[null,{"$f":"INDEX(Table1[NName],RANDBETWEEN(1,ROWS(Table1[])))","v":"Kevin Jordan"},{"$f":"INDEX(USCity,RANDBETWEEN(1,COUNTA(USCity)))","v":"Louisville"}]
[null,{"$f":"INDEX(Table1[NName],RANDBETWEEN(1,ROWS(Table1[])))","v":"Timothy Griffin"},{"$f":"INDEX(USCity,RANDBETWEEN(1,COUNTA(USCity)))","v":"Atlanta"}]
[null,{"$f":"INDEX(Table1[NName],RANDBETWEEN(1,ROWS(Table1[])))","v":"Vincent Simpson"},{"$f":"INDEX(USCity,RANDBETWEEN(1,COUNTA(USCity)))","v":"Tulsa"}]
[null,{"$f":"INDEX(Table1[NName],RANDBETWEEN(1,ROWS(Table1[])))","v":"Jeremy Powell"},{"$f":"INDEX(USCity,RANDBETWEEN(1,COUNTA(USCity)))","v":"Tacoma"}]
[null,{"$f":"INDEX(Table1[NName],RANDBETWEEN(1,ROWS(Table1[])))","v":"Albert Bennett"},{"$f":"INDEX(USCity,RANDBETWEEN(1,COUNTA(USCity)))","v":"Arlington"}]
[null,{"$f":"INDEX(Table1[NName],RANDBETWEEN(1,ROWS(Table1[])))","v":"Donald Barnes"},{"$f":"INDEX(USCity,RANDBETWEEN(1,COUNTA(USCity)))","v":"Rochester"}]
[null,{"$f":"INDEX(Table1[NName],RANDBETWEEN(1,ROWS(Table1[])))","v":"Gerald Sanchez"},{"$f":"INDEX(USCity,RANDBETWEEN(1,COUNTA(USCity)))","v":"Vancouver"}]
[null,{"$f":"INDEX(Table1[NName],RANDBETWEEN(1,ROWS(Table1[])))","v":"Justin Gomez"},{"$f":"INDEX(USCity,RANDBETWEEN(1,COUNTA(USCity)))","v":"Columbus"}]
[null,{"$f":"INDEX(Table1[NName],RANDBETWEEN(1,ROWS(Table1[])))","v":"Jason Barnes"},{"$f":"INDEX(USCity,RANDBETWEEN(1,COUNTA(USCity)))","v":"Tucson"}]
[null,{"$f":"INDEX(Table1[NName],RANDBETWEEN(1,ROWS(Table1[])))","v":"Jack Murray"},{"$f":"INDEX(USCity,RANDBETWEEN(1,COUNTA(USCity)))","v":"Colorado Springs"}]
[null,{"$f":"INDEX(Table1[NName],RANDBETWEEN(1,ROWS(Table1[])))","v":"Thomas Reynolds"},{"$f":"INDEX(USCity,RANDBETWEEN(1,COUNTA(USCity)))","v":"Montgomery"}]
[null,{"$f":"INDEX(Table1[NName],RANDBETWEEN(1,ROWS(Table1[])))","v":"Christopher Baker"},{"$f":"INDEX(USCity,RANDBETWEEN(1,COUNTA(USCity)))","v":"Jackson"}]
[null,{"$f":"INDEX(Table1[NName],RANDBETWEEN(1,ROWS(Table1[])))","v":"Terry Jenkins"},{"$f":"INDEX(USCity,RANDBETWEEN(1,COUNTA(USCity)))","v":"Jersey City"}]
[null,{"$f":"INDEX(Table1[NName],RANDBETWEEN(1,ROWS(Table1[])))","v":"Terry Jenkins"},{"$f":"INDEX(USCity,RANDBETWEEN(1,COUNTA(USCity)))","v":"Vancouver"}]
[null,{"$f":"INDEX(Table1[NName],RANDBETWEEN(1,ROWS(Table1[])))","v":"Michael Boyd"},{"$f":"INDEX(USCity,RANDBETWEEN(1,COUNTA(USCity)))","v":"Portland"}]
[null,{"$f":"INDEX(Table1[NName],RANDBETWEEN(1,ROWS(Table1[])))","v":"Charles Richardson"},{"$f":"INDEX(USCity,RANDBETWEEN(1,COUNTA(USCity)))","v":"Rochester"}]
[null,{"$f":"INDEX(Table1[NName],RANDBETWEEN(1,ROWS(Table1[])))","v":"Jason Parker"},{"$f":"INDEX(USCity,RANDBETWEEN(1,COUNTA(USCity)))","v":"Glendale"}]
[null,{"$f":"INDEX(Table1[NName],RANDBETWEEN(1,ROWS(Table1[])))","v":"Carlos Turner"},{"$f":"INDEX(USCity,RANDBETWEEN(1,COUNTA(USCity)))","v":"Overland"}]
[null,{"$f":"INDEX(Table1[NName],RANDBETWEEN(1,ROWS(Table1[])))","v":"Earl Jackson"},{"$f":"INDEX(USCity,RANDBETWEEN(1,COUNTA(USCity)))","v":"Scottsdale"}]
[null,{"$f":"INDEX(Table1[NName],RANDBETWEEN(1,ROWS(Table1[])))","v":"Anthony Rodriguez"},{"$f":"INDEX(USCity,RANDBETWEEN(1,COUNTA(USCity)))","v":"Henderson"}]
[null,{"$f":"INDEX(Table1[NName],RANDBETWEEN(1,ROWS(Table1[])))","v":"Kevin Jordan"},{"$f":"INDEX(USCity,RANDBETWEEN(1,COUNTA(USCity)))","v":"Norfolk"}]
[null,{"$f":"INDEX(Table1[NName],RANDBETWEEN(1,ROWS(Table1[])))","v":"Gary Collins"},{"$f":"INDEX(USCity,RANDBETWEEN(1,COUNTA(USCity)))","v":"North"}]
[null,{"$f":"INDEX(Table1[NName],RANDBETWEEN(1,ROWS(Table1[])))","v":"Timothy Griffin"},{"$f":"INDEX(USCity,RANDBETWEEN(1,COUNTA(USCity)))","v":"Arlington"}]
[null,{"$f":"INDEX(Table1[NName],RANDBETWEEN(1,ROWS(Table1[])))","v":"Justin Young"},{"$f":"INDEX(USCity,RANDBETWEEN(1,COUNTA(USCity)))","v":"Newport News"}]
[null,{"$f":"INDEX(Table1[NName],RANDBETWEEN(1,ROWS(Table1[])))","v":"Aaron Hunter"},{"$f":"INDEX(USCity,RANDBETWEEN(1,COUNTA(USCity)))","v":"Anchorage"}]
[null,{"$f":"INDEX(Table1[NName],RANDBETWEEN(1,ROWS(Table1[])))","v":"Albert Bennett"},{"$f":"INDEX(USCity,RANDBETWEEN(1,COUNTA(USCity)))","v":"Chattanooga"}]
[null,{"$f":"INDEX(Table1[NName],RANDBETWEEN(1,ROWS(Table1[])))","v":"Marvin Robinson"},{"$f":"INDEX(USCity,RANDBETWEEN(1,COUNTA(USCity)))","v":"Chandler"}]
[null,{"$f":"INDEX(Table1[NName],RANDBETWEEN(1,ROWS(Table1[])))","v":"Albert Bennett"},{"$f":"INDEX(USCity,RANDBETWEEN(1,COUNTA(USCity)))","v":"Irvine"}]
[null,{"$f":"INDEX(Table1[NName],RANDBETWEEN(1,ROWS(Table1[])))","v":"Marvin Smith"},{"$f":"INDEX(USCity,RANDBETWEEN(1,COUNTA(USCity)))","v":"Minneapolis"}]

{"sheet":"CC","index":2,"n_rows":49,"n_cols":3,"rows_kept":49,"cut":false,"hidden":false,"merged":[]}
[]
[null,"Table4"]
[null,"NName","Dest_A"]
[null,{"$f":"INDEX(Table1[NName],RANDBETWEEN(1,ROWS(Table1[])))","v":"Justin Barnes"},{"$f":"INDEX(USCity,RANDBETWEEN(1,COUNTA(USCity)))","v":"Madison"}]
[null,{"$f":"INDEX(Table1[NName],RANDBETWEEN(1,ROWS(Table1[])))","v":"Johnny Gomez"},{"$f":"INDEX(USCity,RANDBETWEEN(1,COUNTA(USCity)))","v":"Grand Rapids"}]
[null,{"$f":"INDEX(Table1[NName],RANDBETWEEN(1,ROWS(Table1[])))","v":"Justin Barnes"},{"$f":"INDEX(USCity,RANDBETWEEN(1,COUNTA(USCity)))","v":"Colorado Springs"}]
[null,{"$f":"INDEX(Table1[NName],RANDBETWEEN(1,ROWS(Table1[])))","v":"Aaron Hunter"},{"$f":"INDEX(USCity,RANDBETWEEN(1,COUNTA(USCity)))","v":"Providence"}]
[null,{"$f":"INDEX(Table1[NName],RANDBETWEEN(1,ROWS(Table1[])))","v":"Albert Gonzales"},{"$f":"INDEX(USCity,RANDBETWEEN(1,COUNTA(USCity)))","v":"Irving"}]
[null,{"$f":"INDEX(Table1[NName],RANDBETWEEN(1,ROWS(Table1[])))","v":"Robert Ward"},{"$f":"INDEX(USCity,RANDBETWEEN(1,COUNTA(USCity)))","v":"Fort"}]
[null,{"$f":"INDEX(Table1[NName],RANDBETWEEN(1,ROWS(Table1[])))","v":"Gerald Sanchez"},{"$f":"INDEX(USCity,RANDBETWEEN(1,COUNTA(USCity)))","v":"San Jose"}]
[null,{"$f":"INDEX(Table1[NName],RANDBETWEEN(1,ROWS(Table1[])))","v":"Jack Murray"},{"$f":"INDEX(USCity,RANDBETWEEN(1,COUNTA(USCity)))","v":"Ontario"}]
[null,{"$f":"INDEX(Table1[NName],RANDBETWEEN(1,ROWS(Table1[])))","v":"Paul Williams"},{"$f":"INDEX(USCity,RANDBETWEEN(1,COUNTA(USCity)))","v":"San Jose"}]
[null,{"$f":"INDEX(Table1[NName],RANDBETWEEN(1,ROWS(Table1[])))","v":"Rodney Long"},{"$f":"INDEX(USCity,RANDBETWEEN(1,COUNTA(USCity)))","v":"Rancho Cucamonga"}]
[null,{"$f":"INDEX(Table1[NName],RANDBETWEEN(1,ROWS(Table1[])))","v":"Nathan Rogers"},{"$f":"INDEX(USCity,RANDBETWEEN(1,COUNTA(USCity)))","v":"Grand Rapids"}]
[null,{"$f":"INDEX(Table1[NName],RANDBETWEEN(1,ROWS(Table1[])))","v":"Gerald Sanchez"},{"$f":"INDEX(USCity,RANDBETWEEN(1,COUNTA(USCity)))","v":"Chandler"}]
[null,{"$f":"INDEX(Table1[NName],RANDBETWEEN(1,ROWS(Table1[])))","v":"Jonathan Washington"},{"$f":"INDEX(USCity,RANDBETWEEN(1,COUNTA(USCity)))","v":"Orlando"}]
[null,{"$f":"INDEX(Table1[NName],RANDBETWEEN(1,ROWS(Table1[])))","v":"Mark Smith"},{"$f":"INDEX(USCity,RANDBETWEEN(1,COUNTA(USCity)))","v":"Pittsburgh"}]
[null,{"$f":"INDEX(Table1[NName],RANDBETWEEN(1,ROWS(Table1[])))","v":"Johnny Gomez"},{"$f":"INDEX(USCity,RANDBETWEEN(1,COUNTA(USCity)))","v":"Des Moines"}]
[null,{"$f":"INDEX(Table1[NName],RANDBETWEEN(1,ROWS(Table1[])))","v":"Albert Gonzales"},{"$f":"INDEX(USCity,RANDBETWEEN(1,COUNTA(USCity)))","v":"Austin"}]
[null,{"$f":"INDEX(Table1[NName],RANDBETWEEN(1,ROWS(Table1[])))","v":"Philip Griffin"},{"$f":"INDEX(USCity,RANDBETWEEN(1,COUNTA(USCity)))","v":"Oakland"}]
[null,{"$f":"INDEX(Table1[NName],RANDBETWEEN(1,ROWS(Table1[])))","v":"Earl Kelly"},{"$f":"INDEX(USCity,RANDBETWEEN(1,COUNTA(USCity)))","v":"Virginia Beach"}]
[null,{"$f":"INDEX(Table1[NName],RANDBETWEEN(1,ROWS(Table1[])))","v":"Thomas Reynolds"},{"$f":"INDEX(USCity,RANDBETWEEN(1,COUNTA(USCity)))","v":"Tampa"}]
[null,{"$f":"INDEX(Table1[NName],RANDBETWEEN(1,ROWS(Table1[])))","v":"Thomas Reynolds"},{"$f":"INDEX(USCity,RANDBETWEEN(1,COUNTA(USCity)))","v":"Seattle"}]
[null,{"$f":"INDEX(Table1[NName],RANDBETWEEN(1,ROWS(Table1[])))","v":"Lawrence Ford"},{"$f":"INDEX(USCity,RANDBETWEEN(1,COUNTA(USCity)))","v":"Providence"}]
[null,{"$f":"INDEX(Table1[NName],RANDBETWEEN(1,ROWS(Table1[])))","v":"Randy Anderson"},{"$f":"INDEX(USCity,RANDBETWEEN(1,COUNTA(USCity)))","v":"Bakersfield"}]
[null,{"$f":"INDEX(Table1[NName],RANDBETWEEN(1,ROWS(Table1[])))","v":"Eugene Lopez"},{"$f":"INDEX(USCity,RANDBETWEEN(1,COUNTA(USCity)))","v":"Oxnard"}]
[null,{"$f":"INDEX(Table1[NName],RANDBETWEEN(1,ROWS(Table1[])))","v":"Mark Smith"},{"$f":"INDEX(USCity,RANDBETWEEN(1,COUNTA(USCity)))","v":"Raleigh"}]
[null,{"$f":"INDEX(Table1[NName],RANDBETWEEN(1,ROWS(Table1[])))","v":"Gerald Sanchez"},{"$f":"INDEX(USCity,RANDBETWEEN(1,COUNTA(USCity)))","v":"Indianapolis"}]
[null,{"$f":"INDEX(Table1[NName],RANDBETWEEN(1,ROWS(Table1[])))","v":"Justin Gomez"},{"$f":"INDEX(USCity,RANDBETWEEN(1,COUNTA(USCity)))","v":"Shreveport"}]
[null,{"$f":"INDEX(Table1[NName],RANDBETWEEN(1,ROWS(Table1[])))","v":"David James"},{"$f":"INDEX(USCity,RANDBETWEEN(1,COUNTA(USCity)))","v":"Gilbert"}]
[null,{"$f":"INDEX(Table1[NName],RANDBETWEEN(1,ROWS(Table1[])))","v":"David James"},{"$f":"INDEX(USCity,RANDBETWEEN(1,COUNTA(USCity)))","v":"Huntsville"}]
[null,{"$f":"INDEX(Table1[NName],RANDBETWEEN(1,ROWS(Table1[])))","v":"Mark Smith"},{"$f":"INDEX(USCity,RANDBETWEEN(1,COUNTA(USCity)))","v":"Orlando"}]
[null,{"$f":"INDEX(Table1[NName],RANDBETWEEN(1,ROWS(Table1[])))","v":"Gerald Sanchez"},{"$f":"INDEX(USCity,RANDBETWEEN(1,COUNTA(USCity)))","v":"Oxnard"}]
[null,{"$f":"INDEX(Table1[NName],RANDBETWEEN(1,ROWS(Table1[])))","v":"Ronald Howard"},{"$f":"INDEX(USCity,RANDBETWEEN(1,COUNTA(USCity)))","v":"Newport News"}]
[null,{"$f":"INDEX(Table1[NName],RANDBETWEEN(1,ROWS(Table1[])))","v":"Albert Gonzales"},{"$f":"INDEX(USCity,RANDBETWEEN(1,COUNTA(USCity)))","v":"Richmond"}]
[null,{"$f":"INDEX(Table1[NName],RANDBETWEEN(1,ROWS(Table1[])))","v":"Christopher Baker"},{"$f":"INDEX(USCity,RANDBETWEEN(1,COUNTA(USCity)))","v":"Salt Lake"}]
[null,{"$f":"INDEX(Table1[NName],RANDBETWEEN(1,ROWS(Table1[])))","v":"Charles Richardson"},{"$f":"INDEX(USCity,RANDBETWEEN(1,COUNTA(USCity)))","v":"Irvine"}]
[null,{"$f":"INDEX(Table1[NName],RANDBETWEEN(1,ROWS(Table1[])))","v":"Charles Torres"},{"$f":"INDEX(USCity,RANDBETWEEN(1,COUNTA(USCity)))","v":"San Jose"}]
[null,{"$f":"INDEX(Table1[NName],RANDBETWEEN(1,ROWS(Table1[])))","v":"Robert Ward"},{"$f":"INDEX(USCity,RANDBETWEEN(1,COUNTA(USCity)))","v":"Modesto"}]
[null,{"$f":"INDEX(Table1[NName],RANDBETWEEN(1,ROWS(Table1[])))","v":"David James"},{"$f":"INDEX(USCity,RANDBETWEEN(1,COUNTA(USCity)))","v":"Moreno Valley"}]
[null,{"$f":"INDEX(Table1[NName],RANDBETWEEN(1,ROWS(Table1[])))","v":"Juan Reed"},{"$f":"INDEX(USCity,RANDBETWEEN(1,COUNTA(USCity)))","v":"Garland"}]
[null,{"$f":"INDEX(Table1[NName],RANDBETWEEN(1,ROWS(Table1[])))","v":"Donald Barnes"},{"$f":"INDEX(USCity,RANDBETWEEN(1,COUNTA(USCity)))","v":"Chicago"}]
[null,{"$f":"INDEX(Table1[NName],RANDBETWEEN(1,ROWS(Table1[])))","v":"Jonathan Washington"},{"$f":"INDEX(USCity,RANDBETWEEN(1,COUNTA(USCity)))","v":"Huntsville"}]
[null,{"$f":"INDEX(Table1[NName],RANDBETWEEN(1,ROWS(Table1[])))","v":"Jonathan Washington"},{"$f":"INDEX(USCity,RANDBETWEEN(1,COUNTA(USCity)))","v":"Sacramento"}]
[null,{"$f":"INDEX(Table1[NName],RANDBETWEEN(1,ROWS(Table1[])))","v":"Mark Smith"},{"$f":"INDEX(USCity,RANDBETWEEN(1,COUNTA(USCity)))","v":"Virginia Beach"}]
[null,{"$f":"INDEX(Table1[NName],RANDBETWEEN(1,ROWS(Table1[])))","v":"Juan Reed"},{"$f":"INDEX(USCity,RANDBETWEEN(1,COUNTA(USCity)))","v":"Gilbert"}]
[null,{"$f":"INDEX(Table1[NName],RANDBETWEEN(1,ROWS(Table1[])))","v":"Thomas Cox"},{"$f":"INDEX(USCity,RANDBETWEEN(1,COUNTA(USCity)))","v":"Huntsville"}]
[null,{"$f":"INDEX(Table1[NName],RANDBETWEEN(1,ROWS(Table1[])))","v":"Roger Garcia"},{"$f":"INDEX(USCity,RANDBETWEEN(1,COUNTA(USCity)))","v":"Knoxville"}]
[null,{"$f":"INDEX(Table1[NName],RANDBETWEEN(1,ROWS(Table1[])))","v":"Nathan Rogers"},{"$f":"INDEX(USCity,RANDBETWEEN(1,COUNTA(USCity)))","v":"Bakersfield"}]

{"sheet":"Summary","index":3,"n_rows":141,"n_cols":18,"rows_kept":141,"cut":false,"hidden":false,"merged":[]}
[]
[null,null,"Table5",null,null,"Table6",null,null,null,null,null,null,null,null,null,null,null,"Random test data"]
[null,null,"NName","Dest_A",null,"NName","Dest_A",null,null,null,null,null,null,null,null,null,null,"NName"]
[null,null,"Aaron Hunter","Louisville",null,"Aaron Hunter","Louisville; Pittsburgh; Grand Rapids; Newark; Omaha; Mesa; Irving",null,null,null,null,null,null,null,null,null,null,"Marvin Smith"]
[null,null,"Aaron Hunter","Pittsburgh",null,"Albert Bennett","Chandler; Chula Vista; Plano",null,null,null,null,null,null,null,null,null,null,"Roger Clark"]
[null,null,"Aaron Hunter","Grand Rapids",null,"Albert Gonzales","Fort Worth; Tulsa",null,null,null,null,null,null,null,null,null,null,"Nathan Rogers"]
[null,null,"Aaron Hunter","Newark",null,"Anthony Rodriguez","Modesto; Tempe",null,null,null,null,null,null,null,null,null,null,"Eugene Lopez"]
[null,null,"Aaron Hunter","Omaha",null,"Benjamin Rogers","Indianapolis; Garland",null,null,null,null,null,null,null,null,null,null,"Earl Jackson"]
[null,null,"Aaron Hunter","Mesa",null,"Carlos Turner","Tacoma; Arlington; Gilbert; Louisville",null,null,null,null,null,null,null,null,null,null,"Christopher Baker"]
[null,null,"Aaron Hunter","Irving",null,"Charles Richardson","Bakersfield; Colorado Springs; Brownsville",null,null,null,null,null,null,null,null,null,null,"Thomas Cox"]
[null,null,"Albert Bennett","Chandler",null,"Charles Torres","Seattle; North; Moreno Valley",null,null,null,null,null,null,null,null,null,null,"Wayne Allen"]
[null,null,"Albert Bennett","Chula Vista",null,"Christopher Baker","Dallas; Mobile; Irving",null,null,null,null,null,null,null,null,null,null,"Steven Roberts"]
[null,null,"Albert Bennett","Plano",null,"Daniel Gonzales","Irvine; Little Rock; Greensboro; Tacoma",null,null,null,null,null,null,null,null,null,null,"Daniel Gonzales"]
[null,null,"Albert Gonzales","Fort Worth",null,"David James","Garden Grove; Long Beach; Moreno Valley",null,null,null,null,null,null,null,null,null,null,"Vincent Simpson"]
[null,null,"Albert Gonzales","Tulsa",null,"David Woods","San Antonio; Indianapolis; Fremont",null,null,null,null,null,null,null,null,null,null,"Robert Ward"]
[null,null,"Anthony Rodriguez","Modesto",null,"Earl Jackson","Norfolk; Fort Worth; Sacramento",null,null,null,null,null,null,null,null,null,null,"Thomas Reynolds"]
[null,null,"Anthony Rodriguez","Tempe",null,"Eugene Lopez","El Paso; Corpus Christi; Tucson; Providence",null,null,null,null,null,null,null,null,null,null,"Johnny Gomez"]
[null,null,"Benjamin Rogers","Indianapolis",null,"George Russell","Garland; Corpus Christi; Colorado Springs; Miami; Winston-Salem",null,null,null,null,null,null,null,null,null,null,"Albert Bennett"]
[null,null,"Benjamin Rogers","Garland",null,"Gerald Sanchez","Seattle; Hialeah; Amarillo; Fayetteville",null,null,null,null,null,null,null,null,null,null,"George Russell"]
[null,null,"Carlos Turner","Tacoma",null,"Jack Murray","Irvine; San Bernardino",null,null,null,null,null,null,null,null,null,null,"James Clark"]
[null,null,"Carlos Turner","Arlington",null,"James Clark","Cincinnati; Ontario",null,null,null,null,null,null,null,null,null,null,"Donald Barnes"]
[null,null,"Carlos Turner","Gilbert",null,"Jason Barnes","Los Angeles; Akron; Fort Wayne",null,null,null,null,null,null,null,null,null,null,"Vincent Parker"]
[null,null,"Carlos Turner","Louisville",null,"Jason Parker","Knoxville; San Antonio; Cleveland; Kansas City",null,null,null,null,null,null,null,null,null,null,"Lawrence Ford"]
[null,null,"Charles Richardson","Bakersfield",null,"Jeremy Powell","Kansas City; Milwaukee",null,null,null,null,null,null,null,null,null,null,"Thomas Allen"]
[null,null,"Charles Richardson","Colorado Springs",null,"Joe Ward","Orlando",null,null,null,null,null,null,null,null,null,null,"Jeremy Powell"]
[null,null,"Charles Richardson","Brownsville",null,"Johnny Gomez","Lincoln; North; Corpus Christi; Laredo",null,null,null,null,null,null,null,null,null,null,"Rodney Long"]
[null,null,"Charles Torres","Seattle",null,"Jonathan Washington","Washington; Fayetteville",null,null,null,null,null,null,null,null,null,null,"Gary Collins"]
[null,null,"Charles Torres","North",null,"Juan Reed","Huntsville; Worcester",null,null,null,null,null,null,null,null,null,null,"David Woods"]
[null,null,"Charles Torres","Moreno Valley",null,"Justin Barnes","Spokane; Tucson",null,null,null,null,null,null,null,null,null,null,"Anthony Rodriguez"]
[null,null,"Christopher Baker","Dallas",null,"Justin Young","Tempe; Jackson",null,null,null,null,null,null,null,null,null,null,"Randy Hayes"]
[null,null,"Christopher Baker","Mobile",null,"Kevin Jordan","Omaha; St. Petersburg; Tulsa; Charlotte",null,null,null,null,null,null,null,null,null,null,"Juan Reed"]
[null,null,"Christopher Baker","Irving",null,"Lawrence Ford","Norfolk; Akron; Fremont",null,null,null,null,null,null,null,null,null,null,"Jason Parker"]
[null,null,"Daniel Gonzales","Irvine",null,"Mark Smith","Honolulu",null,null,null,null,null,null,null,null,null,null,"Philip Griffin"]
[null,null,"Daniel Gonzales","Little Rock",null,"Marvin Robinson","Tulsa",null,null,null,null,null,null,null,null,null,null,"Paul Williams"]
[null,null,"Daniel Gonzales","Greensboro",null,"Marvin Smith","Fort Wayne; Boise; Little Rock",null,null,null,null,null,null,null,null,null,null,"Randy Anderson"]
[null,null,"Daniel Gonzales","Tacoma",null,"Michael Boyd","New Orleans; Baton Rouge; Shreveport; Seattle; Spokane; Vancouver",null,null,null,null,null,null,null,null,null,null,"Earl Kelly"]
[null,null,"David James","Garden Grove",null,"Nathan Rogers","Cincinnati; Brownsville; Tucson; Moreno Valley; Winston-Salem",null,null,null,null,null,null,null,null,null,null,"Albert Gonzales"]
[null,null,"David James","Long Beach",null,"Paul Murray","Salt Lake",null,null,null,null,null,null,null,null,null,null,"Jason Barnes"]
[null,null,"David James","Moreno Valley",null,"Paul Williams","Scottsdale; Fort Worth",null,null,null,null,null,null,null,null,null,null,"Mark Smith"]
[null,null,"David Woods","San Antonio",null,"Philip Griffin","Salt Lake",null,null,null,null,null,null,null,null,null,null,"Marvin Gonzales"]
[null,null,"David Woods","Indianapolis",null,"Randy Anderson","St. Louis",null,null,null,null,null,null,null,null,null,null,"Terry Jenkins"]
[null,null,"David Woods","Fremont",null,"Randy Hayes","Tucson",null,null,null,null,null,null,null,null,null,null,"Kevin Jordan"]
[null,null,"Earl Jackson","Norfolk",null,"Robert Ward","Shreveport; Toledo; Tampa",null,null,null,null,null,null,null,null,null,null,"Joe Ward"]
[null,null,"Earl Jackson","Fort Worth",null,"Rodney Long","Santa Ana; Miami",null,null,null,null,null,null,null,null,null,null,"Justin Barnes"]
[null,null,"Earl Jackson","Sacramento",null,"Roger Clark","Richmond",null,null,null,null,null,null,null,null,null,null,"Ronald Howard"]
[null,null,"Eugene Lopez","El Paso",null,"Roger Garcia","San Jose",null,null,null,null,null,null,null,null,null,null,"Paul Murray"]
[null,null,"Eugene Lopez","Corpus Christi",null,"Ronald Howard","Oxnard",null,null,null,null,null,null,null,null,null,null,"Carlos Turner"]
[null,null,"Eugene Lopez","Tucson",null,"Steven Roberts","Chula Vista",null,null,null,null,null,null,null,null,null,null,"Roger Garcia"]
[null,null,"Eugene Lopez","Providence",null,"Terry Jenkins","Garland; Fontana; Gilbert; Virginia Beach; Brownsville",null,null,null,null,null,null,null,null,null,null,"Aaron Hunter"]
[null,null,"George Russell","Garland",null,"Thomas Allen","Glendale; Newport News",null,null,null,null,null,null,null,null,null,null,"Jonathan Washington"]
[null,null,"George Russell","Corpus Christi",null,"Thomas Cox","Modesto; Pittsburgh; Overland; San Francisco",null,null,null,null,null,null,null,null,null,null,"Gerald Sanchez"]
[null,null,"George Russell","Colorado Springs",null,"Thomas Reynolds","Washington; Vancouver",null,null,null,null,null,null,null,null,null,null,"Benjamin Rogers"]
[null,null,"George Russell","Miami",null,"Timothy Griffin","Moreno Valley; Cleveland",null,null,null,null,null,null,null,null,null,null,"Marvin Robinson"]
[null,null,"George Russell","Winston-Salem",null,"Vincent Parker","Fontana; Fort Worth; San Jose",null,null,null,null,null,null,null,null,null,null,"David James"]
[null,null,"Gerald Sanchez","Seattle",null,"Vincent Simpson","Chula Vista",null,null,null,null,null,null,null,null,null,null,"Charles Torres"]
[null,null,"Gerald Sanchez","Hialeah",null,null,null,null,null,null,null,null,null,null,null,null,null,"Shawn Fisher"]
[null,null,"Gerald Sanchez","Amarillo",null,null,null,null,null,null,null,null,null,null,null,null,null,"Jack Murray"]
[null,null,"Gerald Sanchez","Fayetteville",null,null,null,null,null,null,null,null,null,null,null,null,null,"Justin Young"]
[null,null,"Jack Murray","Irvine",null,null,null,null,null,null,null,null,null,null,null,null,null,"Charles Richardson"]
[null,null,"Jack Murray","San Bernardino",null,null,null,null,null,null,null,null,null,null,null,null,null,"Justin Gomez"]
[null,null,"James Clark","Cincinnati",null,null,null,null,null,null,null,null,null,null,null,null,null,"Michael Boyd"]
[null,null,"James Clark","Ontario",null,null,null,null,null,null,null,null,null,null,null,null,null,"Timothy Griffin"]
[null,null,"Jason Barnes","Los Angeles"]
[null,null,"Jason Barnes","Akron"]
[null,null,"Jason Barnes","Fort Wayne"]
[null,null,"Jason Parker","Knoxville"]
[null,null,"Jason Parker","San Antonio"]
[null,null,"Jason Parker","Cleveland"]
[null,null,"Jason Parker","Kansas City"]
[null,null,"Jeremy Powell","Kansas City"]
[null,null,"Jeremy Powell","Milwaukee"]
[null,null,"Joe Ward","Orlando"]
[null,null,"Johnny Gomez","Lincoln"]
[null,null,"Johnny Gomez","North"]
[null,null,"Johnny Gomez","Corpus Christi"]
[null,null,"Johnny Gomez","Laredo"]
[null,null,"Jonathan Washington","Washington"]
[null,null,"Jonathan Washington","Fayetteville"]
[null,null,"Juan Reed","Huntsville"]
[null,null,"Juan Reed","Worcester"]
[null,null,"Justin Barnes","Spokane"]
[null,null,"Justin Barnes","Tucson"]
[null,null,"Justin Young","Tempe"]
[null,null,"Justin Young","Jackson"]
[null,null,"Kevin Jordan","Omaha"]
[null,null,"Kevin Jordan","St. Petersburg"]
[null,null,"Kevin Jordan","Tulsa"]
[null,null,"Kevin Jordan","Charlotte"]
[null,null,"Lawrence Ford","Norfolk"]
[null,null,"Lawrence Ford","Akron"]
[null,null,"Lawrence Ford","Fremont"]
[null,null,"Mark Smith","Honolulu"]
[null,null,"Marvin Robinson","Tulsa"]
[null,null,"Marvin Smith","Fort Wayne"]
[null,null,"Marvin Smith","Boise"]
[null,null,"Marvin Smith","Little Rock"]
[null,null,"Michael Boyd","New Orleans"]
[null,null,"Michael Boyd","Baton Rouge"]
[null,null,"Michael Boyd","Shreveport"]
[null,null,"Michael Boyd","Seattle"]
[null,null,"Michael Boyd","Spokane"]
[null,null,"Michael Boyd","Vancouver"]
[null,null,"Nathan Rogers","Cincinnati"]
[null,null,"Nathan Rogers","Brownsville"]
[null,null,"Nathan Rogers","Tucson"]
[null,null,"Nathan Rogers","Moreno Valley"]
[null,null,"Nathan Rogers","Winston-Salem"]
[null,null,"Paul Murray","Salt Lake"]
[null,null,"Paul Williams","Scottsdale"]
[null,null,"Paul Williams","Fort Worth"]
[null,null,"Philip Griffin","Salt Lake"]
[null,null,"Randy Anderson","St. Louis"]
[null,null,"Randy Hayes","Tucson"]
[null,null,"Robert Ward","Shreveport"]
[null,null,"Robert Ward","Toledo"]
[null,null,"Robert Ward","Tampa"]
[null,null,"Rodney Long","Santa Ana"]
[null,null,"Rodney Long","Miami"]
[null,null,"Roger Clark","Richmond"]
[null,null,"Roger Garcia","San Jose"]
[null,null,"Ronald Howard","Oxnard"]
[null,null,"Steven Roberts","Chula Vista"]
[null,null,"Terry Jenkins","Garland"]
[null,null,"Terry Jenkins","Fontana"]
[null,null,"Terry Jenkins","Gilbert"]
[null,null,"Terry Jenkins","Virginia Beach"]
[null,null,"Terry Jenkins","Brownsville"]
[null,null,"Thomas Allen","Glendale"]
[null,null,"Thomas Allen","Newport News"]
[null,null,"Thomas Cox","Modesto"]
[null,null,"Thomas Cox","Pittsburgh"]
[null,null,"Thomas Cox","Overland"]
[null,null,"Thomas Cox","San Francisco"]
[null,null,"Thomas Reynolds","Washington"]
[null,null,"Thomas Reynolds","Vancouver"]
[null,null,"Timothy Griffin","Moreno Valley"]
[null,null,"Timothy Griffin","Cleveland"]
[null,null,"Vincent Parker","Fontana"]
[null,null,"Vincent Parker","Fort Worth"]
[null,null,"Vincent Parker","San Jose"]
[null,null,"Vincent Simpson","Chula Vista"]